[Event "Titled Tuesday Blitz January 18 2022"]
[White "Nguyen Hong Nhung"]
[Black "Tregubov, Pavel V."]
[WhiteFideId "12412201"]
[BlackFideId "4115341"]
[WhiteElo "1661"]
[BlackElo "2341"]
[Result "0-1"]
[Round "09"]
[TimeControl "180+1"]
[Date "2022.01.18"]
[WhiteClock "0:00:09"]
[BlackClock "0:00:21"]

1. e4 {[%clk 0:03:00]}  e6 {[%clk 0:03:00]} 2. d4 {[%clk 0:03:00]}  d5 {[%clk 0:03:00]} 3. Nc3 {[%clk 0:03:01]}  Bb4 {[%clk 0:03:00]} 4. e5 {[%clk 0:03:00]}  c5 {[%clk 0:03:00]} 5. a3 {[%clk 0:03:00]}  Ba5 {[%clk 0:03:01]} 6. Bb5+ {[%clk 0:02:44]}  Bd7 {[%clk 0:02:59]} 7. Bxd7+ {[%clk 0:02:43]}  Nxd7 {[%clk 0:02:58]} 8. f4 {[%clk 0:02:21]}  cxd4 {[%clk 0:02:52]} 9. Qxd4 {[%clk 0:02:21]}  Ne7 {[%clk 0:02:48]} 10. Bd2 {[%clk 0:02:13]}  O-O {[%clk 0:02:46]} 11. Nf3 {[%clk 0:02:12]}  Nf5 {[%clk 0:02:35]} 12. Qf2 {[%clk 0:02:10]}  Bb6 {[%clk 0:02:30]} 13. Qe2 {[%clk 0:02:10]}  Rc8 {[%clk 0:02:21]} 14. O-O-O {[%clk 0:02:03]}  Qc7 {[%clk 0:02:18]} 15. Be1 {[%clk 0:01:41]}  Be3+ {[%clk 0:01:59]} 16. Kb1 {[%clk 0:01:41]}  Bxf4 {[%clk 0:01:59]} 17. Rf1 {[%clk 0:01:27]}  Bxe5 {[%clk 0:01:56]} 18. Nxe5 {[%clk 0:01:27]}  Qxe5 {[%clk 0:01:57]} 19. Qxe5 {[%clk 0:01:26]}  Nxe5 {[%clk 0:01:56]} 20. Nxd5 {[%clk 0:01:26]}  Rfd8 {[%clk 0:01:44]} 21. Bb4 {[%clk 0:01:12]}  Nc6 {[%clk 0:01:26]} 22. Bc3 {[%clk 0:00:59]}  Rxd5 {[%clk 0:01:12]} 23. Rxd5 {[%clk 0:00:57]}  Ne3 {[%clk 0:01:03]} 24. Rdd1 {[%clk 0:00:51]}  Nxf1 {[%clk 0:01:03]} 25. Rxf1 {[%clk 0:00:52]}  Rd8 {[%clk 0:01:02]} 26. Ka2 {[%clk 0:00:50]}  e5 {[%clk 0:01:02]} 27. Rf5 {[%clk 0:00:48]}  f6 {[%clk 0:01:02]} 28. g4 {[%clk 0:00:48]}  Kf7 {[%clk 0:01:01]} 29. Rf2 {[%clk 0:00:46]}  Ke6 {[%clk 0:01:01]} 30. Kb3 {[%clk 0:00:43]}  Rd1 {[%clk 0:01:00]} 31. Kc4 {[%clk 0:00:41]}  g6 {[%clk 0:00:54]} 32. b4 {[%clk 0:00:38]}  a6 {[%clk 0:00:47]} 33. a4 {[%clk 0:00:37]}  Nd4 {[%clk 0:00:45]} 34. Kc5 {[%clk 0:00:31]}  f5 {[%clk 0:00:22]} 35. gxf5+ {[%clk 0:00:26]}  Nxf5 {[%clk 0:00:22]} 36. Kb6 {[%clk 0:00:20]}  Nd6 {[%clk 0:00:22]} 37. Re2 {[%clk 0:00:18]}  e4 {[%clk 0:00:19]} 38. Kc7 {[%clk 0:00:13]}  Rf1 {[%clk 0:00:16]} 39. Bd2 {[%clk 0:00:13]}  Rf7+ {[%clk 0:00:16]} 40. Kb6 {[%clk 0:00:11]}  Nc4+ {[%clk 0:00:16]} 41. Kc5 {[%clk 0:00:09]}  Rc7+ {[%clk 0:00:15]} 42. Kd4 {[%clk 0:00:08]}  Nxd2 {[%clk 0:00:16]} 43. Rxd2 {[%clk 0:00:09]}  Rd7+ {[%clk 0:00:16]} 44. Ke3 {[%clk 0:00:08]}  Rxd2 {[%clk 0:00:17]} 45. Kxd2 {[%clk 0:00:09]}  Kd5 {[%clk 0:00:17]} 46. Ke3 {[%clk 0:00:03]}  Kc4 {[%clk 0:00:17]} 47. c3 {[%clk 0:00:03]}  Kxc3 {[%clk 0:00:17]} 48. b5 {[%clk 0:00:03]}  axb5 {[%clk 0:00:16]} 49. axb5 {[%clk 0:00:04]}  Kc4 {[%clk 0:00:17]} 50. Kxe4 {[%clk 0:00:04]}  Kxb5 {[%clk 0:00:17]} 51. Kf4 {[%clk 0:00:05]}  Kc4 {[%clk 0:00:18]} 52. Kg5 {[%clk 0:00:06]}  b5 {[%clk 0:00:18]} 53. Kh6 {[%clk 0:00:06]}  b4 {[%clk 0:00:19]} 54. Kxh7 {[%clk 0:00:07]}  b3 {[%clk 0:00:19]} 55. Kxg6 {[%clk 0:00:08]}  b2 {[%clk 0:00:20]} 56. h4 {[%clk 0:00:09]}  b1=Q+ {[%clk 0:00:20]} 57. Kg5 {[%clk 0:00:09]}  Kd5 {[%clk 0:00:21]} 58. h5 {[%clk 0:00:09]}  Ke6 {[%clk 0:00:21]} 59. Kh6 {[%clk 0:00:09]}  Kf7 {[%clk 0:00:20]} 60. Kg5 {[%clk 0:00:09]}  Qe4 {[%clk 0:00:20]} 61. h6 {[%clk 0:00:09]}  Qg6+ {[%clk 0:00:21]} 0-1


[Site "https://www.chess.com"]

[Event "Titled Tuesday Blitz January 18 2022"]
[White "Nyzhnyk, Illya"]
[Black "Moskalenko, Alexander"]
[WhiteFideId "14118084"]
[BlackFideId "4155351"]
[WhiteElo "2694"]
[BlackElo "2515"]
[Result "1-0"]
[Round "09"]
[TimeControl "180+1"]
[Date "2022.01.18"]
[WhiteClock "0:01:19"]
[BlackClock "0:00:41"]

1. Nf3 {[%clk 0:03:00]}  Nf6 {[%clk 0:02:57]} 2. c4 {[%clk 0:03:00]}  e6 {[%clk 0:02:57]} 3. b3 {[%clk 0:03:01]}  b6 {[%clk 0:02:57]} 4. Bb2 {[%clk 0:03:01]}  Bb7 {[%clk 0:02:58]} 5. e3 {[%clk 0:03:02]}  Be7 {[%clk 0:02:58]} 6. Be2 {[%clk 0:03:02]}  O-O {[%clk 0:02:59]} 7. Qc2 {[%clk 0:03:02]}  c5 {[%clk 0:03:00]} 8. O-O {[%clk 0:03:00]}  d5 {[%clk 0:03:00]} 9. d4 {[%clk 0:03:00]}  dxc4 {[%clk 0:03:00]} 10. bxc4 {[%clk 0:03:00]}  cxd4 {[%clk 0:02:57]} 11. exd4 {[%clk 0:02:59]}  Nc6 {[%clk 0:02:57]} 12. Rd1 {[%clk 0:02:59]}  Rc8 {[%clk 0:02:57]} 13. Nbd2 {[%clk 0:02:58]}  b5 {[%clk 0:02:51]} 14. c5 {[%clk 0:02:55]}  a6 {[%clk 0:02:47]} 15. a4 {[%clk 0:02:55]}  b4 {[%clk 0:02:29]} 16. Nc4 {[%clk 0:02:47]}  Nd5 {[%clk 0:02:27]} 17. a5 {[%clk 0:02:45]}  g6 {[%clk 0:02:01]} 18. Qb3 {[%clk 0:02:42]}  Bf6 {[%clk 0:01:59]} 19. Bf1 {[%clk 0:02:39]}  Ba8 {[%clk 0:01:51]} 20. Nb6 {[%clk 0:02:36]}  Nxb6 {[%clk 0:01:49]} 21. axb6 {[%clk 0:02:34]}  a5 {[%clk 0:01:49]} 22. Ne5 {[%clk 0:02:27]}  Bxe5 {[%clk 0:01:42]} 23. dxe5 {[%clk 0:02:27]}  Qh4 {[%clk 0:01:42]} 24. Qg3 {[%clk 0:02:18]}  Qe4 {[%clk 0:01:26]} 25. Bd3 {[%clk 0:01:51]}  Qd5 {[%clk 0:01:26]} 26. Bxg6 {[%clk 0:01:50]}  hxg6 {[%clk 0:01:27]} 27. Rxd5 {[%clk 0:01:50]}  exd5 {[%clk 0:01:24]} 28. e6 {[%clk 0:01:46]}  d4 {[%clk 0:01:24]} 29. Re1 {[%clk 0:01:41]}  Rfe8 {[%clk 0:01:21]} 30. Qg4 {[%clk 0:01:31]}  a4 {[%clk 0:01:15]} 31. Bxd4 {[%clk 0:01:23]}  a3 {[%clk 0:00:54]} 32. Bf6 {[%clk 0:01:23]}  Ne7 {[%clk 0:00:41]} 33. Qh4 {[%clk 0:01:19]} 1-0


[Site "https://www.chess.com"]

[Event "Titled Tuesday Blitz January 18 2022"]
[White "Pinto, Daniel"]
[Black "Koziorowicz, Michal"]
[WhiteFideId "3303144"]
[BlackFideId "21809194"]
[WhiteElo "1938"]
[BlackElo "2166"]
[Result "0-1"]
[Round "09"]
[TimeControl "180+1"]
[Date "2022.01.18"]
[WhiteClock "0:00:08"]
[BlackClock "0:01:19"]

1. e4 {[%clk 0:02:38]}  c5 {[%clk 0:02:58]} 2. Nf3 {[%clk 0:02:37]}  d6 {[%clk 0:02:59]} 3. c3 {[%clk 0:02:36]}  Nf6 {[%clk 0:02:59]} 4. Be2 {[%clk 0:02:34]}  Bd7 {[%clk 0:02:57]} 5. d3 {[%clk 0:02:30]}  Bc6 {[%clk 0:02:57]} 6. O-O {[%clk 0:02:29]}  g6 {[%clk 0:02:51]} 7. Re1 {[%clk 0:02:28]}  Bg7 {[%clk 0:02:51]} 8. Nbd2 {[%clk 0:02:28]}  O-O {[%clk 0:02:51]} 9. Nf1 {[%clk 0:02:27]}  Nbd7 {[%clk 0:02:48]} 10. Ng3 {[%clk 0:02:27]}  b5 {[%clk 0:02:40]} 11. h3 {[%clk 0:02:23]}  a5 {[%clk 0:02:37]} 12. Be3 {[%clk 0:02:24]}  b4 {[%clk 0:02:37]} 13. Qb1 {[%clk 0:02:20]}  Rb8 {[%clk 0:02:35]} 14. Qc2 {[%clk 0:02:19]}  Qc7 {[%clk 0:02:30]} 15. d4 {[%clk 0:02:16]}  bxc3 {[%clk 0:02:26]} 16. bxc3 {[%clk 0:02:16]}  cxd4 {[%clk 0:02:21]} 17. cxd4 {[%clk 0:02:16]}  Rfc8 {[%clk 0:02:22]} 18. d5 {[%clk 0:01:28]}  Ba8 {[%clk 0:02:20]} 19. Qxc7 {[%clk 0:01:26]}  Rxc7 {[%clk 0:02:20]} 20. Rac1 {[%clk 0:01:23]}  Rbc8 {[%clk 0:02:18]} 21. Rxc7 {[%clk 0:01:13]}  Rxc7 {[%clk 0:02:19]} 22. Nd4 {[%clk 0:01:11]}  Nc5 {[%clk 0:02:14]} 23. f3 {[%clk 0:01:10]}  Nfd7 {[%clk 0:02:10]} 24. Bb5 {[%clk 0:01:08]}  e6 {[%clk 0:02:00]} 25. dxe6 {[%clk 0:01:03]}  Nxe6 {[%clk 0:01:59]} 26. Nb3 {[%clk 0:00:59]}  Ndc5 {[%clk 0:01:50]} 27. Nxa5 {[%clk 0:00:54]}  Bc3 {[%clk 0:01:50]} 28. Rb1 {[%clk 0:00:41]}  Bxa5 {[%clk 0:01:49]} 29. Bc4 {[%clk 0:00:42]}  Rb7 {[%clk 0:01:42]} 30. Rd1 {[%clk 0:00:42]}  Bc7 {[%clk 0:01:39]} 31. e5 {[%clk 0:00:27]}  dxe5 {[%clk 0:01:34]} 32. Bd5 {[%clk 0:00:20]}  Rb8 {[%clk 0:01:30]} 33. Bxe6 {[%clk 0:00:19]}  Nxe6 {[%clk 0:01:27]} 34. Kh2 {[%clk 0:00:14]}  e4 {[%clk 0:01:26]} 35. fxe4 {[%clk 0:00:12]}  Bxe4 {[%clk 0:01:23]} 36. Rc1 {[%clk 0:00:12]}  Rb2 {[%clk 0:01:17]} 37. Rxc7 {[%clk 0:00:07]}  Rxg2+ {[%clk 0:01:17]} 38. Kh1 {[%clk 0:00:08]}  Rxg3+ {[%clk 0:01:18]} 39. Kh2 {[%clk 0:00:07]}  Rg2+ {[%clk 0:01:18]} 40. Kh1 {[%clk 0:00:08]}  Nxc7 {[%clk 0:01:19]} 0-1


[Site "https://www.chess.com"]

[Event "Titled Tuesday Blitz January 18 2022"]
[White "Rodchenkov, Sergey D."]
[Black "Lauridsen, Jesper Morch"]
[WhiteFideId "4168712"]
[BlackFideId "1401890"]
[WhiteElo "2306"]
[BlackElo "2210"]
[Result "0-1"]
[Round "09"]
[TimeControl "180+1"]
[Date "2022.01.18"]
[WhiteClock "0:00:04"]
[BlackClock "0:00:44"]

1. e4 {[%clk 0:03:00]}  c5 {[%clk 0:02:59]} 2. Nf3 {[%clk 0:03:00]}  d6 {[%clk 0:02:59]} 3. d4 {[%clk 0:03:01]}  cxd4 {[%clk 0:02:59]} 4. Nxd4 {[%clk 0:03:02]}  Nf6 {[%clk 0:02:59]} 5. Nc3 {[%clk 0:03:02]}  g6 {[%clk 0:03:00]} 6. Be3 {[%clk 0:03:02]}  Bg7 {[%clk 0:03:00]} 7. f3 {[%clk 0:03:02]}  O-O {[%clk 0:02:59]} 8. Qd2 {[%clk 0:03:03]}  Nc6 {[%clk 0:03:00]} 9. O-O-O {[%clk 0:03:03]}  Bd7 {[%clk 0:02:58]} 10. h4 {[%clk 0:03:00]}  Rc8 {[%clk 0:02:52]} 11. h5 {[%clk 0:02:42]}  Nxh5 {[%clk 0:02:48]} 12. g4 {[%clk 0:02:38]}  Nf6 {[%clk 0:02:18]} 13. Nxc6 {[%clk 0:02:15]}  Rxc6 {[%clk 0:02:16]} 14. Bh6 {[%clk 0:02:14]}  Rxc3 {[%clk 0:02:05]} 15. Bxg7 {[%clk 0:02:07]}  Rxc2+ {[%clk 0:02:02]} 16. Qxc2 {[%clk 0:02:02]}  Kxg7 {[%clk 0:02:01]} 17. Kb1 {[%clk 0:02:02]}  Qa5 {[%clk 0:01:52]} 18. Qd3 {[%clk 0:01:43]}  Rc8 {[%clk 0:01:43]} 19. Be2 {[%clk 0:01:36]}  Be6 {[%clk 0:01:39]} 20. a3 {[%clk 0:01:22]}  b5 {[%clk 0:01:24]} 21. g5 {[%clk 0:01:04]}  Nh5 {[%clk 0:01:03]} 22. Qd4+ {[%clk 0:00:57]}  Kg8 {[%clk 0:01:02]} 23. Qe3 {[%clk 0:00:16]}  b4 {[%clk 0:00:54]} 24. f4 {[%clk 0:00:16]}  bxa3 {[%clk 0:00:53]} 25. Bxh5 {[%clk 0:00:11]}  axb2 {[%clk 0:00:46]} 26. Kxb2 {[%clk 0:00:04]}  Qa2# {[%clk 0:00:44]} 0-1


[Site "https://www.chess.com"]

[Event "Titled Tuesday Blitz January 18 2022"]
[White "Ruiz Aguilar, Pablo Alexander"]
[Black "Kim, Sergey"]
[WhiteFideId "4401352"]
[BlackFideId "13700570"]
[WhiteElo "2125"]
[BlackElo "2584"]
[Result "0-1"]
[Round "09"]
[TimeControl "180+1"]
[Date "2022.01.18"]
[WhiteClock "0:00:01"]
[BlackClock "0:01:02"]

1. e4 {[%clk 0:03:00]}  e5 {[%clk 0:03:00]} 2. Nf3 {[%clk 0:03:00]}  Nc6 {[%clk 0:03:00]} 3. Bb5 {[%clk 0:02:59]}  a6 {[%clk 0:03:00]} 4. Ba4 {[%clk 0:02:59]}  Nf6 {[%clk 0:03:00]} 5. d3 {[%clk 0:02:58]}  b5 {[%clk 0:03:00]} 6. Bb3 {[%clk 0:02:58]}  Bc5 {[%clk 0:03:00]} 7. O-O {[%clk 0:02:58]}  d6 {[%clk 0:03:00]} 8. c3 {[%clk 0:02:57]}  h6 {[%clk 0:03:00]} 9. a4 {[%clk 0:02:54]}  Rb8 {[%clk 0:02:58]} 10. axb5 {[%clk 0:02:54]}  axb5 {[%clk 0:02:58]} 11. Re1 {[%clk 0:02:53]}  O-O {[%clk 0:02:56]} 12. d4 {[%clk 0:02:53]}  Bb6 {[%clk 0:02:55]} 13. h3 {[%clk 0:02:53]}  Re8 {[%clk 0:02:53]} 14. Na3 {[%clk 0:02:31]}  exd4 {[%clk 0:02:44]} 15. cxd4 {[%clk 0:02:22]}  Na5 {[%clk 0:02:33]} 16. Nxb5 {[%clk 0:02:04]}  Nxb3 {[%clk 0:02:31]} 17. Qxb3 {[%clk 0:02:03]}  Nxe4 {[%clk 0:02:25]} 18. Qc2 {[%clk 0:01:46]}  Bb7 {[%clk 0:02:21]} 19. Nc3 {[%clk 0:01:35]}  Nf6 {[%clk 0:02:12]} 20. Rxe8+ {[%clk 0:01:32]}  Qxe8 {[%clk 0:02:12]} 21. Be3 {[%clk 0:01:28]}  Bxf3 {[%clk 0:02:05]} 22. gxf3 {[%clk 0:01:27]}  Qe6 {[%clk 0:02:05]} 23. Kg2 {[%clk 0:01:26]}  Nd5 {[%clk 0:02:00]} 24. Nxd5 {[%clk 0:01:22]}  Qxd5 {[%clk 0:01:59]} 25. Rd1 {[%clk 0:01:14]}  Re8 {[%clk 0:01:55]} 26. b3 {[%clk 0:01:12]}  Re6 {[%clk 0:01:55]} 27. Rg1 {[%clk 0:00:31]}  Rg6+ {[%clk 0:01:51]} 28. Kf1 {[%clk 0:00:31]}  Rxg1+ {[%clk 0:01:51]} 29. Kxg1 {[%clk 0:00:31]}  Qxf3 {[%clk 0:01:51]} 30. Qc4 {[%clk 0:00:29]}  Qxh3 {[%clk 0:01:46]} 31. Qc6 {[%clk 0:00:28]}  Qg4+ {[%clk 0:01:41]} 32. Kf1 {[%clk 0:00:28]}  Qd1+ {[%clk 0:01:39]} 33. Kg2 {[%clk 0:00:28]}  Qxb3 {[%clk 0:01:36]} 34. Qe8+ {[%clk 0:00:28]}  Kh7 {[%clk 0:01:35]} 35. Qe4+ {[%clk 0:00:28]}  g6 {[%clk 0:01:35]} 36. Qe7 {[%clk 0:00:28]}  Qe6 {[%clk 0:01:34]} 37. Qf8 {[%clk 0:00:25]}  g5 {[%clk 0:01:30]} 38. Qb8 {[%clk 0:00:13]}  Qd5+ {[%clk 0:01:26]} 39. Kg1 {[%clk 0:00:13]}  Bxd4 {[%clk 0:01:21]} 40. Bxd4 {[%clk 0:00:10]}  Qxd4 {[%clk 0:01:22]} 41. Qxc7 {[%clk 0:00:10]}  Qd5 {[%clk 0:01:22]} 42. Qe7 {[%clk 0:00:09]}  Qe6 {[%clk 0:01:21]} 43. Qc7 {[%clk 0:00:09]}  d5 {[%clk 0:01:19]} 44. Qc2+ {[%clk 0:00:09]}  Kg7 {[%clk 0:01:17]} 45. Qc5 {[%clk 0:00:09]}  Qe1+ {[%clk 0:01:13]} 46. Kg2 {[%clk 0:00:08]}  Qe4+ {[%clk 0:01:13]} 47. Kg1 {[%clk 0:00:09]}  d4 {[%clk 0:01:13]} 48. Qc4 {[%clk 0:00:08]}  Qe5 {[%clk 0:01:12]} 49. Qd3 {[%clk 0:00:07]}  Qf6 {[%clk 0:01:12]} 50. Qe4 {[%clk 0:00:07]}  h5 {[%clk 0:01:11]} 51. Qd5 {[%clk 0:00:06]}  Qf4 {[%clk 0:01:08]} 52. Kg2 {[%clk 0:00:05]}  h4 {[%clk 0:01:08]} 53. Kg1 {[%clk 0:00:04]}  h3 {[%clk 0:01:04]} 54. Qc6 {[%clk 0:00:02]}  Qg4+ {[%clk 0:01:03]} 55. Kf1 {[%clk 0:00:01]}  Qg2+ {[%clk 0:01:02]} 0-1


[Site "https://www.chess.com"]

[Event "Titled Tuesday Blitz January 18 2022"]
[White "Savchenko, Boris"]
[Black "Evdokimov, Alexander A."]
[WhiteFideId "4147332"]
[BlackFideId "4139275"]
[WhiteElo "2512"]
[BlackElo "2444"]
[Result "1-0"]
[Round "09"]
[TimeControl "180+1"]
[Date "2022.01.18"]
[WhiteClock "0:00:13"]
[BlackClock "0:00:08"]

1. d4 {[%clk 0:02:45]}  g6 {[%clk 0:02:59]} 2. c4 {[%clk 0:02:35]}  Bg7 {[%clk 0:02:59]} 3. Nc3 {[%clk 0:02:36]}  Nf6 {[%clk 0:02:59]} 4. Nf3 {[%clk 0:02:35]}  O-O {[%clk 0:03:00]} 5. e4 {[%clk 0:02:34]}  d6 {[%clk 0:03:00]} 6. Be2 {[%clk 0:02:34]}  e5 {[%clk 0:02:54]} 7. d5 {[%clk 0:02:29]}  a5 {[%clk 0:02:53]} 8. O-O {[%clk 0:02:24]}  Na6 {[%clk 0:02:54]} 9. Be3 {[%clk 0:02:23]}  h6 {[%clk 0:02:50]} 10. Nd2 {[%clk 0:02:22]}  Ne8 {[%clk 0:02:44]} 11. a3 {[%clk 0:02:21]}  f5 {[%clk 0:02:40]} 12. f3 {[%clk 0:02:21]}  Bd7 {[%clk 0:02:30]} 13. Qc2 {[%clk 0:02:18]}  Nf6 {[%clk 0:02:21]} 14. b3 {[%clk 0:02:14]}  f4 {[%clk 0:02:16]} 15. Bf2 {[%clk 0:02:13]}  g5 {[%clk 0:02:17]} 16. Rfb1 {[%clk 0:02:04]}  g4 {[%clk 0:02:04]} 17. fxg4 {[%clk 0:01:53]}  Nxg4 {[%clk 0:02:04]} 18. Bxg4 {[%clk 0:01:52]}  Bxg4 {[%clk 0:02:05]} 19. Nf3 {[%clk 0:01:44]}  Qe8 {[%clk 0:01:46]} 20. Qe2 {[%clk 0:01:35]}  Nc5 {[%clk 0:01:37]} 21. h3 {[%clk 0:01:29]}  Bh5 {[%clk 0:01:35]} 22. Kh2 {[%clk 0:01:19]}  Kh8 {[%clk 0:01:27]} 23. Nb5 {[%clk 0:01:05]}  Qf7 {[%clk 0:01:20]} 24. b4 {[%clk 0:00:56]}  axb4 {[%clk 0:00:53]} 25. axb4 {[%clk 0:00:57]}  Na6 {[%clk 0:00:53]} 26. c5 {[%clk 0:00:51]}  Rad8 {[%clk 0:00:44]} 27. Nc3 {[%clk 0:00:42]}  Ra8 {[%clk 0:00:37]} 28. c6 {[%clk 0:00:38]}  Rae8 {[%clk 0:00:11]} 29. cxb7 {[%clk 0:00:33]}  Nb8 {[%clk 0:00:11]} 30. b5 {[%clk 0:00:31]}  Rg8 {[%clk 0:00:11]} 31. Ra8 {[%clk 0:00:27]}  Bf6 {[%clk 0:00:11]} 32. Ba7 {[%clk 0:00:20]}  Nd7 {[%clk 0:00:10]} 33. Rxe8 {[%clk 0:00:18]}  Qxe8 {[%clk 0:00:11]} 34. Qf2 {[%clk 0:00:17]}  Qg6 {[%clk 0:00:10]} 35. b6 {[%clk 0:00:16]}  cxb6 {[%clk 0:00:10]} 36. Nb5 {[%clk 0:00:16]}  Be7 {[%clk 0:00:09]} 37. Rc1 {[%clk 0:00:15]}  Bd8 {[%clk 0:00:07]} 38. Rc8 {[%clk 0:00:14]}  Nf6 {[%clk 0:00:08]} 39. Nxd6 {[%clk 0:00:13]}  Nxd5 {[%clk 0:00:07]} 40. exd5 {[%clk 0:00:12]}  Qxd6 {[%clk 0:00:07]} 41. b8=Q {[%clk 0:00:12]}  Qxd5 {[%clk 0:00:07]} 42. Qxe5+ {[%clk 0:00:12]}  Qxe5 {[%clk 0:00:08]} 43. Nxe5 {[%clk 0:00:13]} 1-0


[Site "https://www.chess.com"]

[Event "Titled Tuesday Blitz January 18 2022"]
[White "Sebag, Marie"]
[Black "Remizov, Yaroslav"]
[WhiteFideId "617822"]
[BlackFideId "34134015"]
[WhiteElo "2482"]
[BlackElo "2360"]
[Result "0-1"]
[Round "09"]
[TimeControl "180+1"]
[Date "2022.01.18"]
[WhiteClock "0:00:13"]
[BlackClock "0:01:07"]

1. d4 {[%clk 0:03:00]}  e6 {[%clk 0:02:59]} 2. Bf4 {[%clk 0:02:59]}  a6 {[%clk 0:02:58]} 3. Nf3 {[%clk 0:02:58]}  d6 {[%clk 0:02:58]} 4. e3 {[%clk 0:02:55]}  b6 {[%clk 0:02:58]} 5. Be2 {[%clk 0:02:54]}  c6 {[%clk 0:02:58]} 6. O-O {[%clk 0:02:53]}  Ra7 {[%clk 0:02:59]} 7. h3 {[%clk 0:02:53]}  f6 {[%clk 0:02:59]} 8. c4 {[%clk 0:02:53]}  g5 {[%clk 0:02:59]} 9. Bg3 {[%clk 0:02:50]}  h5 {[%clk 0:02:59]} 10. Qc2 {[%clk 0:02:40]}  Rg7 {[%clk 0:02:58]} 11. h4 {[%clk 0:02:31]}  Nh6 {[%clk 0:02:48]} 12. Bd3 {[%clk 0:02:24]}  Nf5 {[%clk 0:02:42]} 13. Bxf5 {[%clk 0:02:18]}  exf5 {[%clk 0:02:43]} 14. c5 {[%clk 0:02:18]}  Be6 {[%clk 0:02:26]} 15. cxb6 {[%clk 0:01:57]}  Qxb6 {[%clk 0:02:22]} 16. Nc3 {[%clk 0:01:57]}  Be7 {[%clk 0:02:14]} 17. d5 {[%clk 0:01:53]}  f4 {[%clk 0:02:00]} 18. exf4 {[%clk 0:01:33]}  gxf4 {[%clk 0:02:00]} 19. Bxf4 {[%clk 0:01:01]}  Bh3 {[%clk 0:01:59]} 20. g3 {[%clk 0:01:01]}  Bxf1 {[%clk 0:01:52]} 21. Rxf1 {[%clk 0:01:01]}  Nd7 {[%clk 0:01:46]} 22. dxc6 {[%clk 0:00:54]}  Qxc6 {[%clk 0:01:43]} 23. Nd4 {[%clk 0:00:54]}  Qc4 {[%clk 0:01:40]} 24. Nf5 {[%clk 0:00:48]}  Rg4 {[%clk 0:01:38]} 25. Bxd6 {[%clk 0:00:36]}  Bd8 {[%clk 0:01:37]} 26. Bf4 {[%clk 0:00:23]}  Qxf4 {[%clk 0:01:34]} 27. Re1+ {[%clk 0:00:18]}  Ne5 {[%clk 0:01:31]} 28. Nd5 {[%clk 0:00:17]}  Qa4 {[%clk 0:01:19]} 29. Nd6+ {[%clk 0:00:15]}  Kd7 {[%clk 0:01:09]} 30. Rxe5 {[%clk 0:00:13]}  Qxc2 {[%clk 0:01:07]} 0-1


[Site "https://www.chess.com"]

[Event "Titled Tuesday Blitz January 18 2022"]
[White "Shipov, Sergei"]
[Black "Yurovskykh, Oleksandr"]
[WhiteFideId "4113624"]
[BlackFideId "14134020"]
[WhiteElo "2777"]
[BlackElo "2292"]
[Result "0-1"]
[Round "09"]
[TimeControl "180+1"]
[Date "2022.01.18"]
[WhiteClock "0:00:14"]
[BlackClock "0:01:01"]

1. d4 {[%clk 0:03:00]}  d5 {[%clk 0:02:58]} 2. c4 {[%clk 0:02:59]}  dxc4 {[%clk 0:02:58]} 3. Nf3 {[%clk 0:02:58]}  Nf6 {[%clk 0:02:58]} 4. e3 {[%clk 0:02:59]}  e6 {[%clk 0:02:57]} 5. Bxc4 {[%clk 0:02:59]}  c5 {[%clk 0:02:56]} 6. Qe2 {[%clk 0:03:00]}  Nc6 {[%clk 0:02:53]} 7. O-O {[%clk 0:02:57]}  cxd4 {[%clk 0:02:52]} 8. exd4 {[%clk 0:02:57]}  Be7 {[%clk 0:02:50]} 9. Nc3 {[%clk 0:02:55]}  O-O {[%clk 0:02:48]} 10. Be3 {[%clk 0:02:55]}  Nb4 {[%clk 0:02:41]} 11. Ne5 {[%clk 0:02:53]}  Nbd5 {[%clk 0:02:38]} 12. Rad1 {[%clk 0:02:49]}  Bd7 {[%clk 0:02:35]} 13. f4 {[%clk 0:02:49]}  Rc8 {[%clk 0:02:33]} 14. Kh1 {[%clk 0:02:43]}  Bc6 {[%clk 0:02:30]} 15. f5 {[%clk 0:02:43]}  Nxc3 {[%clk 0:02:24]} 16. bxc3 {[%clk 0:02:42]}  Bd5 {[%clk 0:02:24]} 17. fxe6 {[%clk 0:02:41]}  fxe6 {[%clk 0:02:22]} 18. Bd2 {[%clk 0:01:18]}  Bxc4 {[%clk 0:02:11]} 19. Nxc4 {[%clk 0:01:18]}  Qd5 {[%clk 0:02:11]} 20. Ne3 {[%clk 0:01:18]}  Qe4 {[%clk 0:02:00]} 21. Rde1 {[%clk 0:01:04]}  Bd6 {[%clk 0:01:49]} 22. Qd1 {[%clk 0:00:39]}  Qh4 {[%clk 0:01:44]} 23. g3 {[%clk 0:00:20]}  Bxg3 {[%clk 0:01:34]} 24. Re2 {[%clk 0:00:20]}  Ne4 {[%clk 0:01:21]} 25. Kg1 {[%clk 0:00:14]}  Rxf1+ {[%clk 0:01:15]} 26. Nxf1 {[%clk 0:00:14]}  Bf2+ {[%clk 0:01:04]} 27. Kh1 {[%clk 0:00:14]}  Qg4 {[%clk 0:01:01]} 0-1


[Site "https://www.chess.com"]